[Event "Tatra Limba Master 2022"]
[Site "Poronin"]
[Date "2022.01.10"]
[Round "7.11"]
[White "Kozlowski, Franciszek"]
[Black "Golis, Wiktor"]
[Result "1/2-1/2"]
[ECO "A46"]
[WhiteElo "1523"]
[BlackElo "1553"]
[Annotator "NA RC"]
[PlyCount "58"]
[EventDate "2022.01.07"]
[EventType "swiss"]
[EventCountry "POL"]
[SourceTitle "playchess.com"]
[Source "ChessBase"]
[SourceQuality "1"]
[TimeControl "5400+30"]

1. d4 {[%emt 0:00:02]} Nf6 {[%emt 0:00:08]} 2. Nf3 {[%emt 0:00:06]} e6 {[%emt 0:00:05]} 3. e3 {[%emt 0:00:51]} b6 {[%emt 0:00:07]} 4. b3 {[%emt 0:00:36]} Bb7 {[%emt 0:00:15]} 5. Bb2 {[%emt 0:00:09]} d5 {[%emt 0:00:17]} 6. Nbd2 {[%emt 0:01:52]} Nbd7 {[%emt 0:00:33]} 7. Bd3 {[%emt 0:03:00]} Bd6 {[%emt 0:00:31]} 8. O-O {[%emt 0:01:06]} O-O {[%emt 0:01:03]} 9. c4 {[%emt 0:05:13]} Ne4 {[%emt 0:03:49]} 10. Ne5 {[%emt 0:10:59]} Bxe5 {[%emt 0:02:18]} 11. dxe5 {[%emt 0:00:40]} Ndc5 {[%emt 0:00:46]} 12. Nxe4 {[%emt 0:02:55]} dxe4 {[%emt 0:02:36]} 13. Bc2 {[%emt 0:01:56]} Qg5 {[%emt 0:01:13]} 14. Qe2 {[%emt 0:08:38]} Nd3 {[%emt 0:01:31]} 15. h4 {[%emt 0:00:43]} Qf5 {[%emt 0:10:04]} 16. Bxd3 {[%emt 0:03:21]} exd3 {[%emt 0:00:10]} 17. Qd2 {[%emt 0:00:38]} Rfd8 {[%emt 0:01:51]} 18. f3 {[%emt 0:01:20]} Qg6 {[%emt 0:06:01]} 19. e4 {[%emt 0:01:34]} h6 {[%emt 0:02:35]} 20. Rf2 {[%emt 0:02:45]} Qg3 {[%emt 0:01:43]} 21. Rd1 {[%emt 0:01:05]} Rd7 {[%emt 0:08:49]} 22. Qe3 {[%emt 0:01:27]} Rad8 {[%emt 0:00:12]} 23. Rfd2 {[%emt 0:00:25]} Qxh4 {[%emt 0:00:33]} 24. Rxd3 {[%emt 0:00:53]} Rxd3 {[%emt 0:00:06]} 25. Rxd3 {[%emt 0:00:08]} Rxd3 {[%emt 0:00:06]} 26. Qxd3 {[%emt 0:00:06]} Qe1+ {[%emt 0:00:09]} 27. Kh2 {[%emt 0:01:43]} Qh4+ {[%emt 0:00:07]} 28. Kg1 {[%emt 0:00:49]} Qe1+ {[%emt 0:00:13]} 29. Kh2 {[%emt 0:00:47]} Qh4+ 1/2-1/2

[Event "Tatra Limba Master 2022"]
[Site "Poronin"]
[Date "2022.01.10"]
[Round "8.8"]
[White "Rekuc, Patryk"]
[Black "Rejniak, Zuzanna"]
[Result "1/2-1/2"]
[ECO "B51"]
[WhiteElo "1662"]
[BlackElo "1799"]
[Annotator "NA RC"]
[PlyCount "47"]
[EventDate "2022.01.07"]
[EventType "swiss"]
[EventCountry "POL"]
[SourceTitle "playchess.com"]
[Source "ChessBase"]
[SourceQuality "1"]
[TimeControl "5400+30"]

1. e4 {[%emt 0:00:02]} c5 {[%emt 0:00:04]} 2. Nf3 {[%emt 0:00:03]} d6 {[%emt 0:00:04]} 3. Bb5+ {[%emt 0:00:04]} Nd7 {[%emt 0:00:04]} 4. Ba4 {[%emt 0:00:05]} a6 {[%emt 0:00:04]} 5. c4 {[%emt 0:00:04]} Ngf6 {[%emt 0:00:05]} 6. Nc3 {[%emt 0:00:05]} g6 {[%emt 0:00:06]} 7. O-O {[%emt 0:00:06]} Bg7 {[%emt 0:00:05]} 8. d3 {[%emt 0:00:14]} O-O {[%emt 0:00:06]} 9. h3 {[%emt 0:00:04]} Rb8 {[%emt 0:00:36]} 10. Be3 {[%emt 0:01:32]} Ne8 {[%emt 0:04:07]} 11. d4 {[%emt 0:06:41]} b6 {[%emt 0:00:45]} 12. Qd2 {[%emt 0:03:18]} Nc7 {[%emt 0:01:42]} 13. Bxd7 {[%emt 0:00:32]} Bxd7 {[%emt 0:00:26]} 14. Rad1 {[%emt 0:00:17]} cxd4 {[%emt 0:05:17]} 15. Bxd4 {[%emt 0:00:26]} Bxd4 {[%emt 0:00:04]} 16. Nxd4 {[%emt 0:00:45]} Ne6 {[%emt 0:00:18]} 17. Nxe6 {[%emt 0:01:18]} Bxe6 {[%emt 0:00:03]} 18. Nd5 {[%emt 0:01:57]} Bxd5 {[%emt 0:02:57]} 19. cxd5 {[%emt 0:00:12]} Qd7 {[%emt 0:05:09]} 20. Rc1 {[%emt 0:01:22]} Rfc8 {[%emt 0:00:23]} 21. Rxc8+ {[%emt 0:00:41]} Rxc8 {[%emt 0:00:05]} 22. Rc1 {[%emt 0:00:05]} Rc7 {[%emt 0:01:04]} 23. Qe3 {[%emt 0:00:24]} Qc8 {[%emt 0:00:27]} 24. Rxc7 {[%emt 0:00:50]} 1/2-1/2

[Event "Tatra Limba Master 2022"]
[Site "Poronin"]
[Date "2022.01.10"]
[Round "8.9"]
[White "Kotowicz, Kamil"]
[Black "Gepfert, Cyprian"]
[Result "1-0"]
[ECO "D85"]
[WhiteElo "1732"]
[BlackElo "1743"]
[Annotator "NA RC"]
[PlyCount "87"]
[EventDate "2022.01.07"]
[EventType "swiss"]
[EventCountry "POL"]
[SourceTitle "playchess.com"]
[Source "ChessBase"]
[SourceQuality "1"]
[TimeControl "5400+30"]

1. d4 {[%emt 0:00:05]} Nf6 {[%emt 0:00:07]} 2. c4 {[%emt 0:00:10]} g6 {[%emt 0:00:20]} 3. Nc3 {[%emt 0:00:07]} d5 {[%emt 0:00:05]} 4. cxd5 {[%emt 0:00:05]} Nxd5 {[%emt 0:00:03]} 5. Bd2 {[%emt 0:00:06]} Bg7 {[%emt 0:00:46]} 6. e4 {[%emt 0:00:06]} Nxc3 {[%emt 0:00:33]} 7. Bxc3 {[%emt 0:00:06]} c5 {[%emt 0:00:25]} 8. d5 {[%emt 0:00:05]} Bxc3+ {[%emt 0:00:04]} 9. bxc3 {[%emt 0:00:03]} Qd6 {[%emt 0:00:35]} 10. Qd2 {[%emt 0:00:42]} Qe5 {[%emt 0:02:34]} 11. Bd3 {[%emt 0:03:08]} e6 {[%emt 0:12:27]} 12. f4 {[%emt 0:02:50]} Qd6 {[%emt 0:02:23]} 13. c4 {[%emt 0:03:29]} e5 {[%emt 0:03:21]} 14. Qb2 {[%emt 0:02:56]} f6 {[%emt 0:00:35]} 15. fxe5 {[%emt 0:00:30]} Qxe5 {[%emt 0:10:01]} 16. Qxe5+ {[%emt 0:00:13]} fxe5 {[%emt 0:00:03]} 17. Nf3 {[%emt 0:00:04]} Nd7 {[%emt 0:00:34]} 18. O-O {[%emt 0:01:23]} h6 {[%emt 0:06:30]} 19. Nh4 {[%emt 0:01:22]} Rg8 {[%emt 0:05:08]} 20. Rf2 {[%emt 0:01:08]} Rb8 {[%emt 0:01:28]} 21. Raf1 {[%emt 0:01:04]} Rg7 {[%emt 0:00:10]} 22. Be2 {[%emt 0:01:00]} Ke7 {[%emt 0:02:15]} 23. Rf3 {[%emt 0:16:29]} b5 {[%emt 0:14:10]} 24. Rg3 {[%emt 0:03:31]} Nf8 {[%emt 0:01:03]} 25. cxb5 {[%emt 0:02:32]} Rb6 {[%emt 0:01:29]} 26. a4 {[%emt 0:04:12]} Rf7 {[%emt 0:01:27]} 27. Rxf7+ {[%emt 0:02:40]} Kxf7 {[%emt 0:00:04]} 28. Rc3 {[%emt 0:00:29]} g5 {[%emt 0:11:34]} 29. Rxc5 {[%emt 0:02:07]} Bd7 {[%emt 0:06:01]} 30. Bh5+ {[%emt 0:00:36]} Kf6 {[%emt 0:00:58]} 31. Nf3 {[%emt 0:01:19]} a6 {[%emt 0:07:14]} 32. bxa6 {[%emt 0:04:21]} Rxa6 {[%emt 0:00:09]} 33. a5 {[%emt 0:00:24]} g4 {[%emt 0:00:33]} 34. Nd2 {[%emt 0:01:48]} Kg5 {[%emt 0:00:06]} 35. Bf7 {[%emt 0:00:15]} Rf6 {[%emt 0:07:42]} 36. Bg8 {[%emt 0:11:11]} Kf4 {[%emt 0:00:07]} 37. Kf2 {[%emt 0:00:24]} g3+ {[%emt 0:00:05]} 38. hxg3+ {[%emt 0:00:08]} Kg4+ {[%emt 0:00:04]} 39. Nf3 {[%emt 0:01:41]} Ba4 {[%emt 0:00:31]} 40. Rc7 {[%emt 0:00:58]} Bd7 {[%emt 0:02:22]} 41. Rxd7 {[%emt 0:00:46]} Nxd7 {[%emt 0:01:05]} 42. Be6+ {[%emt 0:00:06]} Kh5 {[%emt 0:01:26]} 43. Bxd7 {[%emt 0:00:13]} Rd6 {[%emt 0:00:34]} 44. Bc6 {[%emt 0:00:24]} 1-0

[Event "Tatra Limba Master 2022"]
[Site "Poronin"]
[Date "2022.01.10"]
[Round "8.10"]
[White "Golis, Wiktor"]
[Black "Mroz, Lena"]
[Result "1/2-1/2"]
[ECO "B31"]
[WhiteElo "1553"]
[BlackElo "1835"]
[Annotator "NA RC"]
[PlyCount "91"]
[EventDate "2022.01.07"]
[EventType "swiss"]
[EventCountry "POL"]
[SourceTitle "playchess.com"]
[Source "ChessBase"]
[SourceQuality "1"]
[TimeControl "5400+30"]

{[%evp 8,79,7,32767,32767,32767,32767,32767,32767,32767,23,32767,32767,32767,15,2,32767,8,13,0,14,14,6,22,11,0,0,-33,-22,-37,32767,32767,-9,32767,32767,32767,-96,-104,-102,-100,-39,-37,-20,-10,-19,-25,-2,-41,32767,32767,32767,32767,32767,-43,32767,32767,32767,-985,3,-104,0,-37,32767,32767,32767,32767,32767,32767,32767,32767,32767,32767,-79,-106]} 1. e4 {[%emt 0:00:02]} c5 {[%emt 0:00:11]} 2. Nf3 {[%emt 0:00:06]} Nc6 {[%emt 0:00:11]} 3. Bb5 {[%emt 0:00:13]} g6 {[%emt 0:00:50]} 4. O-O {[%emt 0:00:27]} Bg7 {[%emt 0:00:04]} 5. c3 {[%emt 0:00:13]} Nf6 {[%emt 0:01:06]} 6. Re1 {[%emt 0:00:14]} O-O {[%emt 0:01:22]} 7. d4 {[%emt 0:00:08]} cxd4 {[%emt 0:00:44]} 8. cxd4 {[%emt 0:01:21]} d5 {[%emt 0:03:19]} 9. e5 {[%emt 0:00:06]} Ne4 {[%emt 0:01:34]} 10. Be3 {[%emt 0:00:06]} Qb6 {[%emt 0:10:02]} 11. Bxc6 {[%emt 0:04:34]} Qxc6 {[%emt 0:05:57]} 12. Nfd2 {[%emt 0:03:10]} Nxd2 {[%emt 0:05:32]} 13. Qxd2 {[%emt 0:02:43]} Bf5 {[%emt 0:03:44]} 14. Nc3 {[%emt 0:02:09]} Rac8 {[%emt 0:02:04]} 15. Rac1 {[%emt 0:00:47]} Qd7 {[%emt 0:01:41]} 16. Qd1 {[%emt 0:02:02]} Rc4 {[%emt 0:12:38]} 17. Qb3 {[%emt 0:14:41]} Rfc8 {[%emt 0:02:19]} 18. h3 {[%emt 0:04:57]} h5 {[%emt 0:28:06]} 19. a3 {[%emt 0:05:05]} f6 {[%emt 0:02:04]} 20. f4 {[%emt 0:01:10]} Kh7 {[%emt 0:02:21]} 21. Bf2 {[%emt 0:16:17] [#]} fxe5 $1 {[%emt 0:01:59]} 22. fxe5 {[%emt 0:00:23]} Bh6 {[%emt 0:00:18]} 23. Rcd1 {[%emt 0:01:23] [#]} a6 {[%emt 0:05:35]} ({Better is} 23... Rf8 $1 $17 24. Be3 {[#]} Bxh3 $1 25. Bxh6 Kxh6) 24. Be3 {[%emt 0:09:19]} Bxe3+ {[%emt 0:07:16]} 25. Rxe3 {[%emt 0:00:01]} e6 {[%emt 0:05:42]} 26. Rd2 {[%emt 0:00:22]} Qg7 {[%emt 0:01:09]} 27. Ree2 {[%emt 0:11:11]} (27. Qd1 $11) 27... b5 {[%emt 0:00:11]} 28. Rf2 {[%emt 0:04:59]} R8c7 {[%emt 0:01:02]} 29. Qd1 {[%emt 0:01:43]} Qh6 {[%emt 0:00:40]} 30. Qf3 {[%emt 0:02:17]} (30. Kh2 $11 {is more appropriate.}) 30... Qg5 {[%emt 0:00:29]} 31. Kh2 Kg7 32. Rf1 $2 $11 {[%emt 0:10:44]} Qh4 $2 {[%emt 0:00:46]} (32... Qxd2 $19 33. Qf2 Qxd4 34. Qxd4 Rxd4) 33. Qf2 {[%emt 0:00:44]} (33. Qe3 $11 {keeps the balance.}) 33... Qg5 {[%emt 0:00:14]} (33... Qxf2 $17 34. Rfxf2 b4 35. axb4 Rxb4) 34. Qf4 $15 {[%emt 0:00:35]} Qxf4+ {[%emt 0:00:05]} 35. Rxf4 {[%emt 0:00:06]} g5 {[%emt 0:00:10]} 36. Rff2 {[%emt 0:00:13]} Kg6 {[%emt 0:01:33]} 37. Ne2 {[%emt 0:03:57]} Rc2 {[%emt 0:00:31]} 38. Nc3 {[%emt 0:00:28]} Rxd2 {[%emt 0:00:38]} 39. Rxd2 {[%emt 0:00:01]} Rc4 {[%emt 0:00:16]} (39... h4 $142) 40. Kg3 {[%emt 0:00:26]} h4+ {[%emt 0:00:56]} 41. Kf3 {[%emt 0:00:10]} Kh5 {[%emt 0:00:27]} 42. g4+ {[%emt 0:00:47]} hxg3 {[%emt 0:00:06]} 43. Kxg3 {[%emt 0:00:07]} Rc7 {[%emt 0:01:08]} 44. Nd1 {[%emt 0:01:22]} Be4 {[%emt 0:00:30]} 45. Nf2 {[%emt 0:00:32]} Bf5 {[%emt 0:00:25]} 46. Ng4 {[%emt 0:00:21]} 1/2-1/2

[Event "Tatra Limba Master 2022"]
[Site "Poronin"]
[Date "2022.01.10"]
[Round "8.11"]
[White "Kozlowski, Franciszek"]
[Black "Radzimski, Antoni"]
[Result "1/2-1/2"]
[ECO "D45"]
[WhiteElo "1523"]
[BlackElo "1613"]
[Annotator "NA RC"]
[PlyCount "49"]
[EventDate "2022.01.07"]
[EventType "swiss"]
[EventCountry "POL"]
[SourceTitle "playchess.com"]
[Source "ChessBase"]
[SourceQuality "1"]
[TimeControl "5400+30"]

1. d4 {[%emt 0:00:03]} d5 {[%emt 0:00:07]} 2. c4 {[%emt 0:00:05]} e6 {[%emt 0:00:05]} 3. Nc3 {[%emt 0:01:17]} c6 {[%emt 0:00:17]} 4. e3 {[%emt 0:01:59]} Nf6 {[%emt 0:00:13]} 5. Nf3 {[%emt 0:00:31]} Nbd7 6. Qc2 {[%emt 0:01:21]} Be7 {[%emt 0:01:18]} 7. Be2 {[%emt 0:00:30]} dxc4 {[%emt 0:00:40]} 8. Bxc4 {[%emt 0:03:25]} b5 {[%emt 0:00:20]} 9. Bd3 {[%emt 0:02:31]} Bb7 {[%emt 0:01:07]} 10. O-O {[%emt 0:04:25]} a6 {[%emt 0:00:35]} 11. Ne4 {[%emt 0:07:30]} Qb6 {[%emt 0:05:50]} 12. Bd2 {[%emt 0:05:46]} c5 {[%emt 0:03:00]} 13. dxc5 {[%emt 0:04:31]} Bxc5 {[%emt 0:01:30]} 14. b4 {[%emt 0:02:55]} Be7 {[%emt 0:00:43]} 15. Rac1 {[%emt 0:01:07]} O-O {[%emt 0:00:52]} 16. Bc3 {[%emt 0:02:32]} Rac8 {[%emt 0:02:17]} 17. Qb1 {[%emt 0:02:41]} Nxe4 {[%emt 0:02:50]} 18. Bxe4 {[%emt 0:00:15]} f5 {[%emt 0:02:54]} 19. Bxb7 {[%emt 0:01:19]} Qxb7 {[%emt 0:01:01]} 20. Qb3 {[%emt 0:01:25]} Rc4 {[%emt 0:02:49]} 21. Nd2 {[%emt 0:01:25]} Rc6 {[%emt 0:01:24]} 22. Nf3 {[%emt 0:02:14]} Rc4 {[%emt 0:00:56]} 23. Nd2 {[%emt 0:02:45]} Rc6 {[%emt 0:02:34]} 24. Nf3 {[%emt 0:00:09]} Rc4 {[%emt 0:10:49]} 25. Nd2 {[%emt 0:00:15]} 1/2-1/2

[Event "Tatra Limba Master 2022"]
[Site "Poronin"]
[Date "2022.01.11"]
[Round "9.6"]
[White "Rejniak, Zuzanna"]
[Black "Kotowicz, Kamil"]
[Result "1/2-1/2"]
[ECO "B15"]
[WhiteElo "1799"]
[BlackElo "1732"]
[Annotator "NA RC"]
[PlyCount "41"]
[EventDate "2022.01.07"]
[EventType "swiss"]
[EventCountry "POL"]
[SourceTitle "playchess.com"]
[Source "ChessBase"]
[SourceQuality "1"]
[TimeControl "5400+30"]

1. e4 {[%emt 0:00:01]} c6 {[%emt 0:00:13]} 2. d4 {[%emt 0:00:04]} d5 {[%emt 0:00:16]} 3. Nc3 {[%emt 0:00:08]} dxe4 {[%emt 0:00:09]} 4. Nxe4 {[%emt 0:00:04]} Nf6 {[%emt 0:00:38]} 5. Nxf6+ {[%emt 0:00:06]} exf6 {[%emt 0:00:13]} 6. c3 {[%emt 0:01:35]} Bd6 {[%emt 0:00:06]} 7. Bd3 {[%emt 0:00:08]} O-O {[%emt 0:00:11]} 8. Qc2 {[%emt 0:04:20]} Re8+ {[%emt 0:00:09]} 9. Ne2 {[%emt 0:00:06]} h5 {[%emt 0:00:02]} 10. O-O {[%emt 0:17:29]} h4 {[%emt 0:00:14]} 11. h3 {[%emt 0:00:04]} Nd7 {[%emt 0:00:54]} 12. Bf4 {[%emt 0:10:07]} Nf8 {[%emt 0:01:48]} 13. Bxd6 {[%emt 0:19:13]} Qxd6 {[%emt 0:00:28]} 14. Qd2 {[%emt 0:00:22]} Ne6 {[%emt 0:03:44]} 15. Rfe1 {[%emt 0:06:20]} Bd7 {[%emt 0:06:46]} 16. Bf5 {[%emt 0:05:38]} Ng5 {[%emt 0:06:52]} 17. Bxd7 {[%emt 0:06:05]} Qxd7 {[%emt 0:00:39]} 18. Nf4 {[%emt 0:00:46]} Qf5 {[%emt 0:05:51]} 19. f3 {[%emt 0:06:28]} Rad8 {[%emt 0:15:56]} 20. Rad1 {[%emt 0:03:28]} b6 {[%emt 0:16:49]} 21. b3 {[%emt 0:02:55]} 1/2-1/2

[Event "Tatra Limba Master 2022"]
[Site "Poronin"]
[Date "2022.01.11"]
[Round "9.7"]
[White "Bartoszczuk, Adam"]
[Black "Rekuc, Patryk"]
[Result "1/2-1/2"]
[ECO "B30"]
[WhiteElo "1380"]
[BlackElo "1662"]
[Annotator "NA RC"]
[PlyCount "50"]
[EventDate "2022.01.07"]
[EventType "swiss"]
[EventCountry "POL"]
[SourceTitle "playchess.com"]
[Source "ChessBase"]
[SourceQuality "1"]
[TimeControl "5400+30"]

1. e4 {[%emt 0:00:01]} c5 {[%emt 0:00:06]} 2. Nf3 {[%emt 0:00:04]} Nc6 {[%emt 0:00:04]} 3. Nc3 {[%emt 0:00:05]} d6 {[%emt 0:00:05]} 4. d4 {[%emt 0:00:33]} cxd4 {[%emt 0:00:06]} 5. Nxd4 {[%emt 0:00:02]} e5 {[%emt 0:00:06]} 6. Ndb5 {[%emt 0:01:18]} a6 {[%emt 0:00:17]} 7. Na3 {[%emt 0:00:07]} Be6 {[%emt 0:00:04]} 8. Nd5 {[%emt 0:05:02]} Nf6 {[%emt 0:00:22]} 9. Bg5 {[%emt 0:03:16]} Bxd5 {[%emt 0:02:17]} 10. exd5 {[%emt 0:00:13]} Nb8 {[%emt 0:02:03]} 11. c3 {[%emt 0:08:47]} Nbd7 {[%emt 0:03:00]} 12. Be2 {[%emt 0:02:46]} Be7 {[%emt 0:00:27]} 13. Nc4 {[%emt 0:08:19]} O-O {[%emt 0:08:22]} 14. O-O {[%emt 0:02:51]} Ne8 {[%emt 0:09:55]} 15. Bxe7 {[%emt 0:03:36]} Qxe7 {[%emt 0:00:07]} 16. Na5 {[%emt 0:00:14]} Qd8 {[%emt 0:08:59]} 17. b4 {[%emt 0:03:16]} Qc7 {[%emt 0:00:38]} 18. Rc1 {[%emt 0:01:31]} b6 {[%emt 0:07:09]} 19. Nb3 {[%emt 0:05:38]} Nef6 {[%emt 0:09:34]} 20. a4 {[%emt 0:08:19]} Rfc8 {[%emt 0:04:34]} 21. a5 {[%emt 0:07:17]} b5 {[%emt 0:00:10]} 22. Re1 {[%emt 0:12:38]} Qb7 {[%emt 0:00:30]} 23. Bf3 {[%emt 0:01:44]} Rc7 {[%emt 0:00:55]} 24. Qd3 {[%emt 0:02:50]} Rac8 {[%emt 0:00:34]} 25. Nd2 {[%emt 0:00:35]} h6 {[%emt 0:04:46]} 1/2-1/2

[Event "Tatra Limba Master 2022"]
[Site "Poronin"]
[Date "2022.01.11"]
[Round "9.8"]
[White "Gepfert, Cyprian"]
[Black "Wysocki, Mateusz"]
[Result "0-1"]
[ECO "B28"]
[WhiteElo "1743"]
[BlackElo "1848"]
[Annotator "NA RC"]
[PlyCount "104"]
[EventDate "2022.01.07"]
[EventType "swiss"]
[EventCountry "POL"]
[SourceTitle "playchess.com"]
[Source "ChessBase"]
[SourceQuality "1"]
[TimeControl "5400+30"]

{[%evp 15,104,18,15,14,32767,32767,32767,7,18,-10,-11,-30,-10,0,0,-13,-17,32767,32767,-8,-18,-29,-33,-47,-33,-159,-182,32767,-191,-199,-180,-196,-192,-191,-197,-228,-210,-175,-175,-223,-222,-201,-208,-206,-205,-335,-315,-392,-354,-410,-447,-604,-386,-412,-441,-525,-361,-364,-391,-359,-524,-615,-933,-560,-692,-989,-2705,-1229,-1330,-4710,-1943,-2203,-1616,-2126,-930,-1743,-29989,-12843,-29985,-2744,-4722,-5110,-12349,-5081,-29985,-12844,-29989,-29990,-29989,-29992,-29993]} 1. e4 {[%emt 0:00:03]} c5 {[%emt 0:00:21]} 2. Nf3 {[%emt 0:00:05]} a6 {[%emt 0:00:37]} 3. c4 {[%emt 0:00:06]} Nc6 {[%emt 0:00:31]} 4. d4 {[%emt 0:00:59]} cxd4 {[%emt 0:00:07]} 5. Nxd4 {[%emt 0:00:08]} e5 {[%emt 0:02:30]} 6. Nc2 {[%emt 0:01:34]} Nf6 {[%emt 0:00:19]} 7. Nc3 {[%emt 0:00:29]} Bc5 {[%emt 0:00:33]} 8. Bd3 {[%emt 0:02:15]} O-O {[%emt 0:01:48]} 9. O-O {[%emt 0:03:59]} d6 {[%emt 0:00:07]} 10. h3 {[%emt 0:01:25]} Be6 {[%emt 0:02:01]} 11. Nd5 {[%emt 0:03:41]} Bxd5 {[%emt 0:08:16]} 12. exd5 {[%emt 0:00:15]} Nd4 {[%emt 0:00:31]} 13. Bg5 {[%emt 0:05:40]} h6 {[%emt 0:03:03]} 14. Bh4 {[%emt 0:03:17]} Nxc2 {[%emt 0:24:05]} 15. Bxc2 {[%emt 0:03:50]} g5 {[%emt 0:00:21]} 16. Bg3 {[%emt 0:00:13]} Qd7 {[%emt 0:02:55]} 17. Qf3 {[%emt 0:03:03]} Ne8 $1 {[%emt 0:03:44]} 18. Qh5 {[%emt 0:04:47]} Kg7 {[%emt 0:00:11]} 19. Kh2 {[%emt 0:10:13]} f5 {[%emt 0:03:05]} ({But not} 19... Nf6 20. Qf3 $11) 20. f4 {[%emt 0:01:55]} (20. Kh1 $15) 20... Nf6 {[%emt 0:00:50]} ({Not} 20... exf4 21. Be1 $17) 21. Qf3 {[%emt 0:02:57]} exf4 {[%emt 0:04:18]} ({Weaker is} 21... gxf4 22. Bh4 $17) 22. Bf2 {[%emt 0:03:31]} Bxf2 {[%emt 0:00:13]} 23. Qxf2 {[%emt 0:01:36]} Rae8 {[%emt 0:00:51]} 24. Rae1 {[%emt 0:00:44]} Kg6 {[%emt 0:03:46]} 25. Qb6 {[%emt 0:06:56]} Re7 {[%emt 0:07:26]} ({Weaker is} 25... Ne4 26. Qb4 $17) 26. Ba4 {[%emt 0:11:43]} Qc7 {[%emt 0:02:23]} ({Not} 26... Qxa4 27. Rxe7 Qxc4 28. Rfe1 $11) 27. Qxc7 {[%emt 0:02:08]} Rxc7 {[%emt 0:00:01]} 28. Re6 {[%emt 0:00:32]} Rxc4 {[%emt 0:00:29]} 29. Bb3 {[%emt 0:00:11]} Rd4 {[%emt 0:01:52]} 30. Rfe1 {[%emt 0:01:19]} (30. Rxd6 $142 Rd2 31. Re6) 30... Rd8 {[%emt 0:01:37]} 31. Re7 {[%emt 0:02:18]} Re4 {[%emt 0:01:21]} 32. R1xe4 {[%emt 0:02:50]} fxe4 {[%emt 0:00:11]} 33. Rxb7 {[%emt 0:01:17]} Kf5 {[%emt 0:00:45]} 34. Rb6 {[%emt 0:01:25]} Ke5 {[%emt 0:01:01]} 35. Rxa6 {[%emt 0:00:16]} Kd4 {[%emt 0:01:52]} 36. Kg1 {[%emt 0:00:50]} h5 {[%emt 0:02:03]} 37. Kf1 {[%emt 0:00:32]} g4 {[%emt 0:00:11]} 38. hxg4 {[%emt 0:00:43]} hxg4 {[%emt 0:00:02]} 39. Bc2 {[%emt 0:02:17]} f3 {[%emt 0:00:28]} 40. gxf3 {[%emt 0:01:16]} gxf3 {[%emt 0:00:02]} 41. Ra4+ {[%emt 0:01:04]} Ke3 {[%emt 0:00:05]} 42. Ra3+ {[%emt 0:00:45]} Kf4 {[%emt 0:00:07]} 43. Ra4 {[%emt 0:00:10]} Rc8 {[%emt 0:00:43]} 44. Bd1 {[%emt 0:01:29]} Nxd5 {[%emt 0:00:37]} 45. Rd4 {[%emt 0:01:44]} Ne3+ {[%emt 0:00:10]} 46. Ke1 {[%emt 0:00:24]} Rh8 {[%emt 0:00:22]} 47. Kd2 {[%emt 0:00:37]} Rh2+ {[%emt 0:00:47]} (47... Nxd1 $142 48. Rc4 Rh1 49. Rc8 e3+ 50. Kd3 Nf2+ 51. Kc2 e2 52. Rf8+ Ke3 53. Kb3 e1=Q 54. Rf6 Qd2 55. Rf7 Rb1 56. Ka4 Qxb2 57. Re7+ Ne4 58. Rxe4+ Kxe4 59. Ka5 Qxa2#) 48. Kc3 {[%emt 0:00:24]} Nxd1+ {[%emt 0:00:43]} 49. Rxd1 {[%emt 0:00:06]} f2 {[%emt 0:00:47]} 50. a4 {[%emt 0:00:07]} e3 {[%emt 0:00:11]} 51. Rxd6 {[%emt 0:00:53]} Rh5 {[%emt 0:00:33]} 52. Kd3 {[%emt 0:00:23]} f1=Q+ {[%emt 0:00:07]} 0-1